[Event "December 5 Early 2023"]
[Site "https://www.chess.com"]
[Date "2023.12.05"]
[Round "1"]
[White "Mushini Ajay"]
[Black "Pourramezanali, Amirreza"]
[Result "0-1"]
[Board "108"]
[TimeControl "180+1"]
[WhiteFideId "35066188"]
[BlackFideId "12511412"]
[WhiteElo "2411"]
[BlackElo "2716"]
[WhiteTeam "IND"]
[BlackTeam "IRI"]
[WhiteClock "0:00:04"]
[BlackClock "0:01:09"]

1. e4 {[%clk 0:03:00]}  c6 {[%clk 0:02:58]} 2. d4 {[%clk 0:02:59]}  d5 {[%clk 0:02:59]} 3. exd5 {[%clk 0:02:57]}  cxd5 {[%clk 0:03:00]} 4. c4 {[%clk 0:02:56]}  Nf6 {[%clk 0:03:00]} 5. Nc3 {[%clk 0:02:55]}  e6 {[%clk 0:03:00]} 6. Nf3 {[%clk 0:02:54]}  Bb4 {[%clk 0:02:59]} 7. cxd5 {[%clk 0:02:53]}  Nxd5 {[%clk 0:02:59]} 8. Bd2 {[%clk 0:02:53]}  O-O {[%clk 0:02:59]} 9. Bd3 {[%clk 0:02:52]}  Be7 {[%clk 0:02:58]} 10. O-O {[%clk 0:02:52]}  Nc6 {[%clk 0:02:59]} 11. Re1 {[%clk 0:02:51]}  Nf6 {[%clk 0:02:59]} 12. Bg5 {[%clk 0:02:44]}  b6 {[%clk 0:02:52]} 13. Qa4 {[%clk 0:02:12]}  Nb4 {[%clk 0:02:48]} 14. Bxf6 {[%clk 0:01:48]}  Nxd3 {[%clk 0:02:43]} 15. Bxe7 {[%clk 0:01:42]}  Qxe7 {[%clk 0:02:44]} 16. Re3 {[%clk 0:01:13]}  Bd7 {[%clk 0:02:17]} 17. Qb3 {[%clk 0:01:03]}  Nf4 {[%clk 0:02:08]} 18. d5 {[%clk 0:01:01]}  Qf6 {[%clk 0:02:04]} 19. d6 {[%clk 0:00:57]}  Bc6 {[%clk 0:02:00]} 20. Ne4 {[%clk 0:00:34]}  Qg6 {[%clk 0:01:55]} 21. Ng3 {[%clk 0:00:30]}  Bd5 {[%clk 0:01:50]} 22. Qb4 {[%clk 0:00:24]}  Nd3 {[%clk 0:01:40]} 23. Qd2 {[%clk 0:00:22]}  Nc5 {[%clk 0:01:38]} 24. Ne5 {[%clk 0:00:20]}  Qg5 {[%clk 0:01:35]} 25. b4 {[%clk 0:00:21]}  Ne4 {[%clk 0:01:28]} 26. Qd4 {[%clk 0:00:17]}  Nxd6 {[%clk 0:01:22]} 27. f3 {[%clk 0:00:06]}  Nf5 {[%clk 0:01:21]} 28. Nxf5 {[%clk 0:00:05]}  Qxf5 {[%clk 0:01:21]} 29. f4 {[%clk 0:00:05]}  Rac8 {[%clk 0:01:18]} 30. Rae1 {[%clk 0:00:06]}  Rfd8 {[%clk 0:01:13]} 31. Rg3 {[%clk 0:00:06]}  f6 {[%clk 0:01:10]} 32. Qxd5 {[%clk 0:00:04]}  Rxd5 {[%clk 0:01:09]} 0-1

[Event "December 5 Early 2023"]
[Site "https://www.chess.com"]
[Date "2023.12.05"]
[Round "1"]
[White "Gerasimenyuk, Mikhail"]
[Black "Kozak, Antoni"]
[Result "0-1"]
[Board "110"]
[TimeControl "180+1"]
[WhiteFideId "14111845"]
[BlackFideId "21832030"]
[WhiteElo "2408"]
[BlackElo "2714"]
[WhiteTeam "UKR"]
[BlackTeam "POL"]
[WhiteClock "0:00:35"]
[BlackClock "0:00:48"]

1. d4 {[%clk 0:03:00]}  Nf6 {[%clk 0:03:00]} 2. Nf3 {[%clk 0:02:58]}  d5 {[%clk 0:02:59]} 3. Bg5 {[%clk 0:02:58]}  c6 {[%clk 0:02:59]} 4. e3 {[%clk 0:02:58]}  Bf5 {[%clk 0:02:59]} 5. Nbd2 {[%clk 0:02:57]}  e6 {[%clk 0:03:00]} 6. Bd3 {[%clk 0:02:58]}  Nbd7 {[%clk 0:03:00]} 7. Bxf5 {[%clk 0:02:58]}  exf5 {[%clk 0:03:00]} 8. c3 {[%clk 0:02:58]}  Be7 {[%clk 0:02:59]} 9. Qc2 {[%clk 0:02:59]}  Ne4 {[%clk 0:02:59]} 10. Bf4 {[%clk 0:02:59]}  O-O {[%clk 0:02:59]} 11. Ne5 {[%clk 0:02:59]}  Re8 {[%clk 0:02:56]} 12. f3 {[%clk 0:02:57]}  Nxd2 {[%clk 0:02:55]} 13. Qxd2 {[%clk 0:02:58]}  Nxe5 {[%clk 0:02:55]} 14. Bxe5 {[%clk 0:02:58]}  Bd6 {[%clk 0:02:56]} 15. Bxd6 {[%clk 0:02:56]}  Qxd6 {[%clk 0:02:57]} 16. O-O {[%clk 0:02:55]}  Re6 {[%clk 0:02:57]} 17. Rae1 {[%clk 0:02:55]}  Rae8 {[%clk 0:02:57]} 18. Rf2 {[%clk 0:02:44]}  Qe7 {[%clk 0:02:55]} 19. Rfe2 {[%clk 0:02:44]}  h5 {[%clk 0:02:54]} 20. Qd3 {[%clk 0:02:44]}  g6 {[%clk 0:02:52]} 21. c4 {[%clk 0:02:43]}  Qb4 {[%clk 0:02:29]} 22. b3 {[%clk 0:02:40]}  a5 {[%clk 0:02:22]} 23. Kf2 {[%clk 0:02:36]}  h4 {[%clk 0:02:17]} 24. g3 {[%clk 0:02:34]}  Kg7 {[%clk 0:02:16]} 25. Qd2 {[%clk 0:02:19]}  Qa3 {[%clk 0:02:04]} 26. cxd5 {[%clk 0:02:15]}  cxd5 {[%clk 0:02:03]} 27. Qc3 {[%clk 0:02:15]}  Rc6 {[%clk 0:01:59]} 28. Qb2 {[%clk 0:02:14]}  Qd6 {[%clk 0:01:48]} 29. Kg2 {[%clk 0:02:14]}  Kg8 {[%clk 0:01:41]} 30. e4 {[%clk 0:02:01]}  dxe4 {[%clk 0:01:38]} 31. fxe4 {[%clk 0:02:01]}  fxe4 {[%clk 0:01:38]} 32. Qd2 {[%clk 0:01:46]}  Qd5 {[%clk 0:01:35]} 33. Re3 {[%clk 0:01:46]}  Rec8 {[%clk 0:01:34]} 34. Kg1 {[%clk 0:01:40]}  Rc2 {[%clk 0:01:33]} 35. Qd1 {[%clk 0:01:40]}  f5 {[%clk 0:01:25]} 36. g4 {[%clk 0:01:28]}  Rc1 {[%clk 0:01:20]} 37. Qe2 {[%clk 0:01:12]}  Qxd4 {[%clk 0:01:09]} 38. gxf5 {[%clk 0:01:08]}  R8c2 {[%clk 0:01:01]} 39. Qf1 {[%clk 0:00:35]}  Qd2 {[%clk 0:00:48]} 0-1

[Event "December 5 Early 2023"]
[Site "https://www.chess.com"]
[Date "2023.12.05"]
[Round "1"]
[White "Sadykov, Ramil"]
[Black "Cesar Maestre, Bernardo"]
[Result "1/2-1/2"]
[Board "111"]
[TimeControl "180+1"]
[WhiteFideId "24113590"]
[BlackFideId "24542547"]
[WhiteElo "2714"]
[BlackElo "2408"]
[WhiteTeam "FID"]
[BlackTeam "ESP"]
[WhiteClock "0:00:02"]
[BlackClock "0:00:02"]

1. Nf3 {[%clk 0:02:59]}  d5 {[%clk 0:02:58]} 2. g3 {[%clk 0:02:58]}  Nf6 {[%clk 0:02:58]} 3. Bg2 {[%clk 0:02:58]}  e6 {[%clk 0:02:58]} 4. O-O {[%clk 0:02:57]}  Be7 {[%clk 0:02:58]} 5. c4 {[%clk 0:02:57]}  O-O {[%clk 0:02:56]} 6. d4 {[%clk 0:02:55]}  c6 {[%clk 0:02:53]} 7. Nc3 {[%clk 0:02:50]}  a5 {[%clk 0:02:51]} 8. Nd2 {[%clk 0:02:42]}  b6 {[%clk 0:02:40]} 9. e4 {[%clk 0:02:27]}  Ba6 {[%clk 0:02:23]} 10. b3 {[%clk 0:02:19]}  Ra7 {[%clk 0:01:43]} 11. e5 {[%clk 0:01:47]}  Nfd7 {[%clk 0:01:40]} 12. Re1 {[%clk 0:01:36]}  c5 {[%clk 0:01:16]} 13. cxd5 {[%clk 0:01:24]}  cxd4 {[%clk 0:01:16]} 14. Na4 {[%clk 0:00:54]}  exd5 {[%clk 0:01:03]} 15. Nf3 {[%clk 0:00:52]}  Nc6 {[%clk 0:00:50]} 16. a3 {[%clk 0:00:44]}  d3 {[%clk 0:00:40]} 17. Nb2 {[%clk 0:00:41]}  Nc5 {[%clk 0:00:38]} 18. Bf1 {[%clk 0:00:34]}  d4 {[%clk 0:00:20]} 19. Nxd3 {[%clk 0:00:32]}  Nxd3 {[%clk 0:00:13]} 20. Bxd3 {[%clk 0:00:33]}  Bxd3 {[%clk 0:00:13]} 21. Qxd3 {[%clk 0:00:34]}  Qd5 {[%clk 0:00:14]} 22. Bb2 {[%clk 0:00:32]}  Rd8 {[%clk 0:00:14]} 23. Rad1 {[%clk 0:00:31]}  Rad7 {[%clk 0:00:14]} 24. h4 {[%clk 0:00:28]}  h6 {[%clk 0:00:14]} 25. Re4 {[%clk 0:00:26]}  Bc5 {[%clk 0:00:14]} 26. h5 {[%clk 0:00:24]}  Ne7 {[%clk 0:00:09]} 27. Rde1 {[%clk 0:00:21]}  Nf5 {[%clk 0:00:06]} 28. e6 {[%clk 0:00:22]}  fxe6 {[%clk 0:00:06]} 29. Rxe6 {[%clk 0:00:16]}  Ne3 {[%clk 0:00:06]} 30. Re4 {[%clk 0:00:11]}  Qxh5 {[%clk 0:00:06]} 31. fxe3 {[%clk 0:00:10]}  Qxf3 {[%clk 0:00:06]} 32. Qc4+ {[%clk 0:00:05]}  Kh8 {[%clk 0:00:05]} 33. exd4 {[%clk 0:00:05]}  Qxg3+ {[%clk 0:00:04]} 34. Kh1 {[%clk 0:00:05]}  Rd5 {[%clk 0:00:04]} 35. Re8+ {[%clk 0:00:03]}  Kh7 {[%clk 0:00:04]} 36. Qc2+ {[%clk 0:00:03]}  Qg6 {[%clk 0:00:01]} 37. Qxg6+ {[%clk 0:00:02]}  Kxg6 {[%clk 0:00:02]} 38. Rxd8 {[%clk 0:00:02]}  Rxd8 {[%clk 0:00:03]} 39. dxc5 {[%clk 0:00:03]}  bxc5 {[%clk 0:00:03]} 40. Re5 {[%clk 0:00:03]}  Rd1+ {[%clk 0:00:04]} 41. Kg2 {[%clk 0:00:03]}  Rd2+ {[%clk 0:00:04]} 42. Kf3 {[%clk 0:00:03]}  Rxb2 {[%clk 0:00:05]} 43. Rxc5 {[%clk 0:00:03]}  Rxb3+ {[%clk 0:00:06]} 44. Kf4 {[%clk 0:00:03]}  Rxa3 {[%clk 0:00:06]} 45. Rc6+ {[%clk 0:00:04]}  Kh7 {[%clk 0:00:07]} 46. Kf5 {[%clk 0:00:04]}  a4 {[%clk 0:00:07]} 47. Ra6 {[%clk 0:00:04]}  Ra1 {[%clk 0:00:07]} 48. Kg4 {[%clk 0:00:04]}  a3 {[%clk 0:00:08]} 49. Kg3 {[%clk 0:00:04]}  a2 {[%clk 0:00:07]} 50. Kg2 {[%clk 0:00:05]}  h5 {[%clk 0:00:07]} 51. Ra5 {[%clk 0:00:05]}  Kh6 {[%clk 0:00:07]} 52. Kh2 {[%clk 0:00:05]}  g6 {[%clk 0:00:07]} 53. Kg2 {[%clk 0:00:05]}  h4 {[%clk 0:00:07]} 54. Kh2 {[%clk 0:00:05]}  g5 {[%clk 0:00:06]} 55. Kg2 {[%clk 0:00:05]}  Kh5 {[%clk 0:00:07]} 56. Ra4 {[%clk 0:00:06]}  h3+ {[%clk 0:00:05]} 57. Kh2 {[%clk 0:00:06]}  g4 {[%clk 0:00:04]} 58. Ra5+ {[%clk 0:00:05]}  Kg6 {[%clk 0:00:03]} 59. Ra3 {[%clk 0:00:01]}  Rf1 {[%clk 0:00:02]} 60. Rxa2 {[%clk 0:00:01]}  Rf3 {[%clk 0:00:02]} 61. Ra5 {[%clk 0:00:01]}  Rf5 {[%clk 0:00:02]} 62. Ra4 {[%clk 0:00:01]}  Kg5 {[%clk 0:00:03]} 63. Ra8 {[%clk 0:00:02]}  Rf4 {[%clk 0:00:02]} 64. Kg3 {[%clk 0:00:01]}  Rf3+ {[%clk 0:00:02]} 65. Kh2 {[%clk 0:00:02]}  Rf5 {[%clk 0:00:03]} 66. Rh8 {[%clk 0:00:02]}  Kf4 {[%clk 0:00:03]} 67. Rg8 {[%clk 0:00:02]}  Kf3 {[%clk 0:00:03]} 68. Rg6 {[%clk 0:00:02]}  Rf4 {[%clk 0:00:02]} 69. Ra6 {[%clk 0:00:02]}  Re4 {[%clk 0:00:02]} 70. Rf6+ {[%clk 0:00:02]}  Ke3 {[%clk 0:00:02]} 71. Kg3 {[%clk 0:00:01]}  Rd4 {[%clk 0:00:02]} 72. Re6+ {[%clk 0:00:02]}  Kd3 {[%clk 0:00:02]} 73. Re5 {[%clk 0:00:02]}  Re4 {[%clk 0:00:03]} 74. Rf5 {[%clk 0:00:02]}  Ke3 {[%clk 0:00:03]} 75. Rg5 {[%clk 0:00:02]}  Kd4 {[%clk 0:00:04]} 76. Rg8 {[%clk 0:00:02]}  Kd3 {[%clk 0:00:04]} 77. Rd8+ {[%clk 0:00:02]}  Ke2 {[%clk 0:00:05]} 78. Rf8 {[%clk 0:00:03]}  Re3+ {[%clk 0:00:04]} 79. Kxg4 {[%clk 0:00:03]}  h2 {[%clk 0:00:05]} 80. Rh8 {[%clk 0:00:02]}  Kf1 {[%clk 0:00:02]} 81. Rxh2 {[%clk 0:00:01]}  Re2 {[%clk 0:00:03]} 82. Kg3 {[%clk 0:00:01]}  Rxh2 {[%clk 0:00:02]} 83. Kxh2 {[%clk 0:00:02]} 1/2-1/2

[Event "December 5 Early 2023"]
[Site "https://www.chess.com"]
[Date "2023.12.05"]
[Round "1"]
[White "Todorovic, Bojan"]
[Black "Sadubayev, Airat"]
[Result "1-0"]
[Board "114"]
[TimeControl "180+1"]
[WhiteFideId "917087"]
[BlackFideId "13713264"]
[WhiteElo "2405"]
[BlackElo "2709"]
[WhiteTeam "SRB"]
[BlackTeam "KAZ"]
[WhiteClock "0:00:37"]
[BlackClock "0:00:00"]

1. Nf3 {[%clk 0:02:58]}  d5 {[%clk 0:02:59]} 2. c4 {[%clk 0:02:56]}  c6 {[%clk 0:02:55]} 3. e3 {[%clk 0:02:53]}  Nf6 {[%clk 0:02:54]} 4. b3 {[%clk 0:02:50]}  Bg4 {[%clk 0:02:51]} 5. Bb2 {[%clk 0:02:47]}  e6 {[%clk 0:02:50]} 6. Be2 {[%clk 0:02:46]}  Nbd7 {[%clk 0:02:47]} 7. O-O {[%clk 0:02:45]}  Bd6 {[%clk 0:02:46]} 8. d4 {[%clk 0:02:44]}  O-O {[%clk 0:02:46]} 9. Nbd2 {[%clk 0:02:42]}  b6 {[%clk 0:02:29]} 10. Ne5 {[%clk 0:02:40]}  Bxe2 {[%clk 0:02:25]} 11. Qxe2 {[%clk 0:02:40]}  Qc7 {[%clk 0:02:25]} 12. Ndf3 {[%clk 0:02:31]}  c5 {[%clk 0:02:23]} 13. cxd5 {[%clk 0:02:28]}  exd5 {[%clk 0:02:21]} 14. Rac1 {[%clk 0:02:26]}  Rfe8 {[%clk 0:02:09]} 15. Nxd7 {[%clk 0:02:24]}  Nxd7 {[%clk 0:02:04]} 16. Rfd1 {[%clk 0:02:21]}  Qb7 {[%clk 0:01:43]} 17. Qd3 {[%clk 0:02:12]}  Rad8 {[%clk 0:01:30]} 18. g3 {[%clk 0:02:00]}  Bf8 {[%clk 0:01:18]} 19. dxc5 {[%clk 0:01:36]}  Nxc5 {[%clk 0:01:16]} 20. Qf5 {[%clk 0:01:36]}  Ne4 {[%clk 0:00:55]} 21. Nd4 {[%clk 0:01:26]}  g6 {[%clk 0:00:46]} 22. Qf3 {[%clk 0:01:15]}  Bg7 {[%clk 0:00:46]} 23. Qe2 {[%clk 0:01:10]}  Rc8 {[%clk 0:00:37]} 24. Nf3 {[%clk 0:00:58]}  Nc3 {[%clk 0:00:23]} 25. Bxc3 {[%clk 0:00:56]}  Bxc3 {[%clk 0:00:23]} 26. Qd3 {[%clk 0:00:56]}  Bg7 {[%clk 0:00:21]} 27. Rxc8 {[%clk 0:00:52]}  Rxc8 {[%clk 0:00:20]} 28. Qxd5 {[%clk 0:00:52]}  Qa6 {[%clk 0:00:19]} 29. Ng5 {[%clk 0:00:50]}  Rf8 {[%clk 0:00:17]} 30. Rc1 {[%clk 0:00:42]}  h6 {[%clk 0:00:17]} 31. Nxf7 {[%clk 0:00:37]}  Rxf7 {[%clk 0:00:00]} 32. Rc7 {[%clk 0:00:37]} 1-0

[Event "December 5 Early 2023"]
[Site "https://www.chess.com"]
[Date "2023.12.05"]
[Round "1"]
[White "Novozhilov, Semen"]
[Black "Szyszylo, Rafal"]
[Result "1-0"]
[Board "115"]
[TimeControl "180+1"]
[WhiteFideId "24289167"]
[BlackFideId "1109626"]
[WhiteElo "2707"]
[BlackElo "2405"]
[WhiteTeam "RUS"]
[BlackTeam "POL"]
[WhiteClock "0:01:14"]
[BlackClock "0:00:10"]

1. d4 {[%clk 0:03:00]}  d6 {[%clk 0:02:59]} 2. e4 {[%clk 0:03:00]}  Nf6 {[%clk 0:03:00]} 3. Nc3 {[%clk 0:03:00]}  g6 {[%clk 0:03:00]} 4. Nf3 {[%clk 0:03:00]}  Bg7 {[%clk 0:03:00]} 5. Be3 {[%clk 0:03:01]}  O-O {[%clk 0:02:58]} 6. Qd2 {[%clk 0:03:01]}  Bg4 {[%clk 0:02:57]} 7. Ng5 {[%clk 0:03:01]}  h6 {[%clk 0:02:55]} 8. h3 {[%clk 0:03:01]}  Bc8 {[%clk 0:02:42]} 9. Nf3 {[%clk 0:03:01]}  h5 {[%clk 0:02:41]} 10. Bh6 {[%clk 0:02:56]}  Nc6 {[%clk 0:02:24]} 11. O-O-O {[%clk 0:02:49]}  Bd7 {[%clk 0:02:22]} 12. e5 {[%clk 0:02:48]}  Nh7 {[%clk 0:02:18]} 13. g4 {[%clk 0:02:43]}  dxe5 {[%clk 0:02:11]} 14. dxe5 {[%clk 0:02:41]}  Be6 {[%clk 0:02:10]} 15. Qe3 {[%clk 0:02:36]}  Qc8 {[%clk 0:01:55]} 16. gxh5 {[%clk 0:02:33]}  Bf5 {[%clk 0:01:52]} 17. Bxg7 {[%clk 0:02:25]}  Kxg7 {[%clk 0:01:52]} 18. Nh4 {[%clk 0:02:26]}  Qe6 {[%clk 0:01:38]} 19. Re1 {[%clk 0:02:16]}  Rad8 {[%clk 0:01:18]} 20. Rg1 {[%clk 0:02:13]}  Nd4 {[%clk 0:01:03]} 21. Nxf5+ {[%clk 0:02:01]}  Nxf5 {[%clk 0:01:02]} 22. Qf4 {[%clk 0:02:01]}  Kh8 {[%clk 0:00:47]} 23. Bc4 {[%clk 0:01:58]}  Qc6 {[%clk 0:00:39]} 24. Bxf7 {[%clk 0:01:45]}  Rd4 {[%clk 0:00:32]} 25. Re4 {[%clk 0:01:44]}  Rxe4 {[%clk 0:00:29]} 26. Nxe4 {[%clk 0:01:45]}  Rxf7 {[%clk 0:00:29]} 27. hxg6 {[%clk 0:01:44]}  Nd4 {[%clk 0:00:23]} 28. Qd2 {[%clk 0:01:40]}  Rg7 {[%clk 0:00:18]} 29. Qxd4 {[%clk 0:01:39]}  Nf8 {[%clk 0:00:13]} 30. Ng5 {[%clk 0:01:17]}  Kg8 {[%clk 0:00:13]} 31. e6 {[%clk 0:01:14]}  Nxe6 {[%clk 0:00:11]} 32. Nxe6 {[%clk 0:01:13]}  Rxg6 {[%clk 0:00:08]} 33. Rxg6+ {[%clk 0:01:12]}  Kf7 {[%clk 0:00:09]} 34. Qg7+ {[%clk 0:01:12]}  Ke8 {[%clk 0:00:09]} 35. Qg8+ {[%clk 0:01:13]}  Kd7 {[%clk 0:00:10]} 36. Qd8# {[%clk 0:01:14]} 1-0

[Event "December 5 Early 2023"]
[Site "https://www.chess.com"]
[Date "2023.12.05"]
[Round "1"]
[White "Goldin, Roman"]
[Black "Arabidze, Meri"]
[Result "0-1"]
[Board "116"]
[TimeControl "180+1"]
[WhiteFideId "2803860"]
[BlackFideId "13604040"]
[WhiteElo "2405"]
[BlackElo "2704"]
[WhiteTeam "ISR"]
[BlackTeam "GEO"]
[WhiteClock "0:00:00"]
[BlackClock "0:01:08"]

1. e4 {[%clk 0:02:58]}  c5 {[%clk 0:02:59]} 2. Nf3 {[%clk 0:02:57]}  e6 {[%clk 0:03:00]} 3. c3 {[%clk 0:02:57]}  Nf6 {[%clk 0:02:58]} 4. e5 {[%clk 0:02:57]}  Nd5 {[%clk 0:02:58]} 5. g3 {[%clk 0:02:58]}  b6 {[%clk 0:02:55]} 6. Bg2 {[%clk 0:02:57]}  Bb7 {[%clk 0:02:55]} 7. O-O {[%clk 0:02:56]}  d6 {[%clk 0:02:56]} 8. exd6 {[%clk 0:02:55]}  Bxd6 {[%clk 0:02:57]} 9. d4 {[%clk 0:02:54]}  O-O {[%clk 0:02:56]} 10. Re1 {[%clk 0:02:51]}  Nd7 {[%clk 0:02:52]} 11. Qd3 {[%clk 0:02:46]}  N7f6 {[%clk 0:02:48]} 12. a4 {[%clk 0:02:27]}  Qc7 {[%clk 0:02:47]} 13. Na3 {[%clk 0:02:24]}  a6 {[%clk 0:02:47]} 14. Nc4 {[%clk 0:02:07]}  Be7 {[%clk 0:02:47]} 15. a5 {[%clk 0:01:53]}  b5 {[%clk 0:02:46]} 16. Nce5 {[%clk 0:01:46]}  Rfd8 {[%clk 0:02:45]} 17. Ng5 {[%clk 0:01:39]}  Rf8 {[%clk 0:02:28]} 18. h4 {[%clk 0:01:03]}  h6 {[%clk 0:02:27]} 19. Ngxf7 {[%clk 0:00:52]}  Rxf7 {[%clk 0:02:25]} 20. Qg6 {[%clk 0:00:51]}  Bd6 {[%clk 0:02:15]} 21. Bxh6 {[%clk 0:00:40]}  Bxe5 {[%clk 0:02:07]} 22. Rxe5 {[%clk 0:00:31]}  Ne7 {[%clk 0:01:59]} 23. Qg5 {[%clk 0:00:30]}  Bxg2 {[%clk 0:01:57]} 24. Kxg2 {[%clk 0:00:23]}  Nf5 {[%clk 0:01:52]} 25. Bxg7 {[%clk 0:00:12]}  Nxg7 {[%clk 0:01:53]} 26. Rae1 {[%clk 0:00:08]}  Qb7+ {[%clk 0:01:53]} 27. Kg1 {[%clk 0:00:07]}  cxd4 {[%clk 0:01:48]} 28. cxd4 {[%clk 0:00:08]}  Raf8 {[%clk 0:01:46]} 29. Rxe6 {[%clk 0:00:07]}  Nh7 {[%clk 0:01:46]} 30. Qg4 {[%clk 0:00:06]}  Rxf2 {[%clk 0:01:44]} 31. R1e4 {[%clk 0:00:02]}  Qc7 {[%clk 0:01:34]} 32. Re7 {[%clk 0:00:01]}  Qc1+ {[%clk 0:01:34]} 33. Re1 {[%clk 0:00:01]}  Qh6 {[%clk 0:01:27]} 34. d5 {[%clk 0:00:00]}  Rxb2 {[%clk 0:01:08]} 0-1

[Event "December 5 Early 2023"]
[Site "https://www.chess.com"]
[Date "2023.12.05"]
[Round "1"]
[White "Krysa, Leandro"]
[Black "Zaksaite, Salomeja"]
[Result "1-0"]
[Board "117"]
[TimeControl "180+1"]
[WhiteFideId "116807"]
[BlackFideId "12801496"]
[WhiteElo "2703"]
[BlackElo "2405"]
[WhiteTeam "ARG"]
[BlackTeam "LTU"]
[WhiteClock "0:01:29"]
[BlackClock "0:00:00"]

1. e4 {[%clk 0:03:00]}  e6 {[%clk 0:02:58]} 2. d4 {[%clk 0:03:00]}  d5 {[%clk 0:02:58]} 3. exd5 {[%clk 0:03:00]}  exd5 {[%clk 0:02:56]} 4. c4 {[%clk 0:03:00]}  dxc4 {[%clk 0:02:52]} 5. Bxc4 {[%clk 0:03:00]}  Nf6 {[%clk 0:02:51]} 6. Qb3 {[%clk 0:02:57]}  Qe7+ {[%clk 0:02:32]} 7. Ne2 {[%clk 0:02:57]}  Qb4+ {[%clk 0:02:30]} 8. Nbc3 {[%clk 0:02:56]}  Qxb3 {[%clk 0:02:29]} 9. axb3 {[%clk 0:02:57]}  Bd6 {[%clk 0:02:13]} 10. Bf4 {[%clk 0:02:44]}  O-O {[%clk 0:02:10]} 11. Bxd6 {[%clk 0:02:36]}  cxd6 {[%clk 0:02:11]} 12. Nb5 {[%clk 0:02:37]}  d5 {[%clk 0:01:58]} 13. Nc7 {[%clk 0:02:32]}  dxc4 {[%clk 0:01:56]} 14. Nxa8 {[%clk 0:02:31]}  Na6 {[%clk 0:01:34]} 15. bxc4 {[%clk 0:02:25]}  Bd7 {[%clk 0:00:29]} 16. Rxa6 {[%clk 0:02:15]}  bxa6 {[%clk 0:00:30]} 17. Nc7 {[%clk 0:02:15]}  Rc8 {[%clk 0:00:09]} 18. Nxa6 {[%clk 0:02:14]}  Rxc4 {[%clk 0:00:09]} 19. Kd2 {[%clk 0:02:15]}  Bb5 {[%clk 0:00:06]} 20. Ra1 {[%clk 0:02:06]}  Ne4+ {[%clk 0:00:03]} 21. Ke3 {[%clk 0:02:05]}  Nd6 {[%clk 0:00:00]} 22. Nc5 {[%clk 0:01:29]} 1-0

[Event "December 5 Early 2023"]
[Site "https://www.chess.com"]
[Date "2023.12.05"]
[Round "1"]
[White "Barath1308"]
[Black "Paltrinieri, Nicholas"]
[Result "0-1"]
[Board "118"]
[TimeControl "180+1"]
[BlackFideId "828262"]
[WhiteElo "2404"]
[BlackElo "2701"]
[BlackTeam "ITA"]
[WhiteClock "0:00:09"]
[BlackClock "0:00:18"]

1. d4 {[%clk 0:03:00]}  g6 {[%clk 0:03:00]} 2. c4 {[%clk 0:03:00]}  Bg7 {[%clk 0:03:00]} 3. g3 {[%clk 0:02:59]}  d6 {[%clk 0:03:01]} 4. Nf3 {[%clk 0:02:59]}  Nc6 {[%clk 0:03:01]} 5. Bg2 {[%clk 0:02:59]}  e5 {[%clk 0:02:54]} 6. d5 {[%clk 0:02:54]}  Nce7 {[%clk 0:02:52]} 7. O-O {[%clk 0:02:54]}  f5 {[%clk 0:02:51]} 8. Nc3 {[%clk 0:02:53]}  Nf6 {[%clk 0:02:52]} 9. Bg5 {[%clk 0:02:52]}  O-O {[%clk 0:02:48]} 10. e4 {[%clk 0:02:43]}  h6 {[%clk 0:02:47]} 11. Bxf6 {[%clk 0:02:41]}  Rxf6 {[%clk 0:02:44]} 12. Nd2 {[%clk 0:02:35]}  f4 {[%clk 0:02:40]} 13. f3 {[%clk 0:02:34]}  h5 {[%clk 0:02:36]} 14. b4 {[%clk 0:02:29]}  g5 {[%clk 0:02:34]} 15. c5 {[%clk 0:02:28]}  Bf8 {[%clk 0:02:32]} 16. Nc4 {[%clk 0:02:27]}  Ng6 {[%clk 0:02:29]} 17. Rc1 {[%clk 0:02:26]}  dxc5 {[%clk 0:02:27]} 18. b5 {[%clk 0:01:45]}  Bd6 {[%clk 0:02:24]} 19. a4 {[%clk 0:01:45]}  Bd7 {[%clk 0:02:17]} 20. a5 {[%clk 0:01:39]}  Kh7 {[%clk 0:02:03]} 21. Qb3 {[%clk 0:01:37]}  b6 {[%clk 0:01:55]} 22. axb6 {[%clk 0:01:35]}  axb6 {[%clk 0:01:53]} 23. Ra1 {[%clk 0:01:34]}  Rf8 {[%clk 0:01:53]} 24. Ra4 {[%clk 0:01:24]}  Rxa4 {[%clk 0:01:38]} 25. Qxa4 {[%clk 0:01:24]}  fxg3 {[%clk 0:01:30]} 26. hxg3 {[%clk 0:01:23]}  g4 {[%clk 0:01:28]} 27. Qc2 {[%clk 0:01:05]}  Qg5 {[%clk 0:01:23]} 28. Qd2 {[%clk 0:00:56]}  Qxd2 {[%clk 0:01:14]} 29. Nxd2 {[%clk 0:00:56]}  Ra8 {[%clk 0:01:11]} 30. Nc4 {[%clk 0:00:54]}  gxf3 {[%clk 0:01:03]} 31. Rxf3 {[%clk 0:00:52]}  Kg7 {[%clk 0:01:02]} 32. Kh2 {[%clk 0:00:49]}  h4 {[%clk 0:00:51]} 33. Bh3 {[%clk 0:00:46]}  hxg3+ {[%clk 0:00:38]} 34. Rxg3 {[%clk 0:00:43]}  Rh8 {[%clk 0:00:35]} 35. Ne3 {[%clk 0:00:35]}  Kf6 {[%clk 0:00:32]} 36. Nf5 {[%clk 0:00:25]}  Nf4 {[%clk 0:00:32]} 37. Rf3 {[%clk 0:00:16]}  c4 {[%clk 0:00:28]} 38. Nd1 {[%clk 0:00:14]}  Bc5 {[%clk 0:00:26]} 39. Nde3 {[%clk 0:00:13]}  Bxe3 {[%clk 0:00:24]} 40. Rxe3 {[%clk 0:00:14]}  Bxf5 {[%clk 0:00:20]} 41. exf5 {[%clk 0:00:13]}  Rxh3+ {[%clk 0:00:17]} 42. Rxh3 {[%clk 0:00:12]}  Nxh3 {[%clk 0:00:18]} 43. Kxh3 {[%clk 0:00:09]}  c3 {[%clk 0:00:18]} 0-1

[Event "December 5 Early 2023"]
[Site "https://www.chess.com"]
[Date "2023.12.05"]
[Round "1"]
[White "Zampronha, Wladimir Camilo"]
[Black "Hambleton, Aman"]
[Result "0-1"]
[Board "120"]
[TimeControl "180+1"]
[WhiteFideId "2103087"]
[BlackFideId "2606577"]
[WhiteElo "2404"]
[BlackElo "2700"]
[WhiteTeam "BRA"]
[BlackTeam "CAN"]
[WhiteClock "0:02:05"]
[BlackClock "0:02:10"]

1. e4 {[%clk 0:03:00]}  b6 {[%clk 0:02:57]} 2. Nf3 {[%clk 0:03:01]}  Bb7 {[%clk 0:02:52]} 3. Nc3 {[%clk 0:03:01]}  e6 {[%clk 0:02:51]} 4. d4 {[%clk 0:02:59]}  Bb4 {[%clk 0:02:51]} 5. Bd3 {[%clk 0:02:59]}  Nf6 {[%clk 0:02:51]} 6. Qe2 {[%clk 0:02:58]}  d5 {[%clk 0:02:50]} 7. e5 {[%clk 0:02:58]}  Ne4 {[%clk 0:02:50]} 8. Bd2 {[%clk 0:02:58]}  Bxc3 {[%clk 0:02:50]} 9. Bxc3 {[%clk 0:02:52]}  c5 {[%clk 0:02:50]} 10. O-O {[%clk 0:02:47]}  Nxc3 {[%clk 0:02:50]} 11. bxc3 {[%clk 0:02:37]}  c4 {[%clk 0:02:50]} 12. a4 {[%clk 0:02:26]}  cxd3 {[%clk 0:02:50]} 13. cxd3 {[%clk 0:02:27]}  Nc6 {[%clk 0:02:49]} 14. c4 {[%clk 0:02:19]}  dxc4 {[%clk 0:02:41]} 15. dxc4 {[%clk 0:02:19]}  Nxd4 {[%clk 0:02:42]} 16. Nxd4 {[%clk 0:02:18]}  Qxd4 {[%clk 0:02:43]} 17. a5 {[%clk 0:02:05]}  Qe4 {[%clk 0:02:10]} 0-1